{"text_format":"3","workbook":"xlsx","n_sheets":1,"sheets":["综合业务岗"],"not_rendered":{"defined_names":2},"read":"whole","date_system":"1900"}

{"sheet":"综合业务岗","index":0,"n_rows":149,"n_cols":7,"rows_kept":149,"merged":[[0,0,0,6],[1,0,2,0],[1,1,2,1],[1,2,1,5],[1,6,2,6],[3,0,5,0],[7,0,11,0],[13,0,21,0],[23,0,34,0],[36,0,40,0],[42,0,44,0],[46,0,58,0],[60,0,74,0],[76,0,80,0],[82,0,89,0],[91,0,94,0],[96,0,105,0],[107,0,115,0],[117,0,124,0],[126,0,134,0],[136,0,146,0]]}
["云南省农村信用社2019年综合业务岗招聘指标条件表"]
["州市","招聘单位","综合业务岗",{"$nulls":3},"备注"]
[null,null,"应届毕业生","普通定向","扶贫定向","小计"]
["版纳","景洪市联社",2,4,null,{"$f":"C4+D4+E4","v":6},"普通定向岗招聘的4人通晓傣语、哈尼语、基诺语应聘者同等条件下优先录用"]
[null,"勐海县联社",4,4,null,{"$f":"C5+D5+E5","v":8}]
[null,"勐腊农商行",4,10,null,{"$f":"C6+D6+E6","v":14}]
["版纳 汇总",null,10,18,null,{"$f":"C7+D7+E7","v":28}]
["保山","昌宁农商行",13,null,null,{"$f":"C8+D8+E8","v":13}]
[null,"龙陵县联社",8,null,null,{"$f":"C9+D9+E9","v":8}]
[null,"隆阳区联社",8,null,null,{"$f":"C10+D10+E10","v":8}]
[null,"施甸县联社",8,null,null,{"$f":"C11+D11+E11","v":8}]
[null,"腾冲农商行",14,null,null,{"$f":"C12+D12+E12","v":14}]
["保山 汇总",null,51,null,null,{"$f":"C13+D13+E13","v":51}]
["楚雄","楚雄农商行",null,10,null,{"$f":"C14+D14+E14","v":10}]
[null,"大姚县联社",5,null,null,{"$f":"C15+D15+E15","v":5}]
[null,"禄丰农商行",5,3,null,{"$f":"C16+D16+E16","v":8}]
[null,"牟定县联社",3,null,null,{"$f":"C17+D17+E17","v":3}]
[null,"南华农商行",7,null,null,{"$f":"C18+D18+E18","v":7}]
[null,"双柏县联社",2,4,null,{"$f":"C19+D19+E19","v":6}]
[null,"武定县联社",9,null,null,{"$f":"C20+D20+E20","v":9}]
[null,"姚安县联社",null,2,null,{"$f":"C21+D21+E21","v":2}]
[null,"元谋县联社",null,10,null,{"$f":"C22+D22+E22","v":10}]
["楚雄 汇总",null,31,29,null,60]
["大理","宾川农商行",4,3,null,7]
[null,"大理农商行",18,null,null,18]
[null,"洱源农商行",3,null,null,3]
[null,"鹤庆县联社",3,null,null,3]
[null,"剑川县联社",5,null,null,5]
[null,"弥渡县联社",4,null,null,4]
[null,"南涧县联社",4,null,null,4]
[null,"巍山县联社",8,2,null,10]
[null,"祥云农商行",9,null,null,9]
[null,"漾濞县联社",null,7,null,7]
[null,"永平县联社",3,null,null,3]
[null,"云龙农商行",4,5,null,9,"普通定向岗招聘的5人通晓白族语言应聘者同等条件优先录用"]
["大理 汇总",null,65,17,null,82]
["德宏","梁河县联社",9,2,null,11,"普通定向岗招聘的2人通晓傣语应聘者同等条件优先录用"]
[null,"陇川农商行",null,6,null,6]
[null,"芒市农商行",4,5,null,9]
[null,"瑞丽市联社",3,null,null,3]
[null,"盈江农商行",5,3,null,8]
["德宏 汇总",null,21,16,null,37]
["迪庆","德钦县联社",null,4,null,4]
[null,"维西县联社",null,8,null,8]
[null,"香格里拉市联社",null,9,null,9]
["迪庆 汇总",null,null,21,null,21]
["红河","个旧市联社",5,5,null,10]
[null,"河口农商行",5,8,null,13]
[null,"红河县联社",5,5,null,10]
[null,"建水县联社",9,null,null,9]
[null,"金平县联社",10,11,null,21]
[null,"开远市联社",2,2,null,4]
[null,"泸西县联社",5,null,null,5]
[null,"绿春县联社",3,null,null,3]
[null,"蒙自农商行",15,null,null,15]
[null,"弥勒农商行",9,null,null,9]
[null,"屏边县联社",null,5,null,5]
[null,"石屏县联社",6,null,null,6]
[null,"元阳县联社",10,null,null,10]
["红河 汇总",null,84,36,null,120]
["昆明","安宁市联社",4,null,null,4]
[null,"呈贡区联社",5,null,null,5]
[null,"东川区联社",5,5,null,10]
[null,"富民县联社",null,10,null,10]
[null,"官渡农合行",12,null,null,12]
[null,"晋宁区联社",5,10,null,15]
[null,"禄劝县联社",2,8,null,{"$f":"C67+D67+E67","v":10},"普通定向岗招聘的8人通晓彝语、苗语应聘者同等条件优先录用"]
[null,"盘龙区联社",14,null,null,14]
[null,"石林县联社",null,4,null,4]
[null,"嵩明农商行",7,null,null,7]
[null,"五华区联社",5,null,null,5]
[null,"西山区联社",4,null,null,4]
[null,"寻甸农商行",15,15,null,30]
[null,"宜良县联社",5,14,null,19]
[null,"营业部",2,null,null,2]
["昆明 汇总",null,85,66,null,151]
["丽江","古城农商行",4,null,null,4]
[null,"华坪县联社",null,2,null,2]
[null,"宁蒗县联社",null,5,null,5]
[null,"永胜农商行",null,4,null,4]
[null,"玉龙农商行",null,5,null,5,"普通定向岗招聘的5人通晓纳西族、白族、普米族、傈僳族语言应聘者同等条件优先录用"]
["丽江 汇总",null,4,16,null,20]
["临沧","沧源县联社",null,6,null,6]
[null,"凤庆农商行",14,null,null,14]
[null,"耿马县联社",null,7,null,7]
[null,"临翔农商行",8,null,null,8]
[null,"双江县联社",null,4,null,4]
[null,"永德县联社",5,null,null,5]
[null,"云县联社",6,null,null,6]
[null,"镇康县联社",null,4,null,4]
["临沧 汇总",null,33,21,null,54]
["怒江","福贡县联社",null,2,null,2,"普通定向岗招聘的2人通晓傈僳族、怒族语言应聘者同等条件优先录用"]
[null,"贡山县联社",3,null,null,3]
[null,"兰坪县联社",3,null,null,3]
[null,"泸水市联社",6,null,null,6,"应届毕业生岗招聘的6人通晓傈僳语及白族语应聘者同等条件优先录用"]
["怒江 汇总",null,12,2,null,14]
["普洱","江城县联社",4,2,null,6]
[null,"景东农商行",8,12,null,20]
[null,"景谷县联社",3,null,null,3]
[null,"澜沧县联社",3,4,null,7]
[null,"孟连县联社",6,null,null,6]
[null,"墨江县联社",10,5,null,15]
[null,"宁洱县联社",4,8,null,12]
[null,"思茅农商行",2,null,null,2]
[null,"西盟县联社",2,2,null,4,"普通定向岗招聘的2人通晓佤语、拉祜语、傣语应聘者同等条件优先录用"]
[null,"镇沅县联社",10,null,null,10]
["普洱 汇总",null,52,33,null,85]
["曲靖","富源县联社",12,null,2,14]
[null,"会泽县联社",8,null,1,9]
[null,"陆良农商行",10,null,null,10]
[null,"罗平农商行",8,null,null,8]
[null,"马龙区联社",4,null,null,4]
[null,"麒麟区联社",6,null,null,6]
[null,"师宗县联社",7,null,null,7]
[null,"宣威市联社",15,null,2,17]
[null,"沾益区联社",6,null,null,6]
["曲靖 汇总",null,76,null,5,81]
["文山","富宁县联社",null,10,null,10]
[null,"广南县联社",3,6,null,9]
[null,"麻栗坡县联社",null,5,null,5]
[null,"马关县联社",null,6,null,6]
[null,"丘北县联社",null,6,null,6]
[null,"文山市农商行",3,null,null,3]
[null,"西畴县联社",null,6,null,6]
[null,"砚山县联社",5,5,null,10]
["文山 汇总",null,11,44,null,55]
["玉溪","澄江县联社",2,null,null,2]
[null,"峨山县联社",6,4,null,10]
[null,"红塔农合行",6,null,null,6]
[null,"华宁县联社",null,4,null,4]
[null,"江川区联社",3,null,null,{"$f":"C131+D131+E131","v":3}]
[null,"通海农商行",5,null,null,5]
[null,"新平县联社",10,null,null,10]
[null,"易门农商行",4,null,null,4]
[null,"元江县联社",5,null,null,5]
["玉溪 汇总",null,41,8,null,49]
["昭通","大关县联社",2,6,null,8]
[null,"鲁甸县联社",8,null,null,8]
[null,"巧家县联社",2,null,null,2]
[null,"水富县联社",2,2,null,4]
[null,"绥江县联社",3,2,null,5]
[null,"威信县联社",10,null,null,10]
[null,"盐津县联社",null,11,null,11]
[null,"彝良县联社",5,4,null,9]
[null,"永善县联社",4,10,null,14]
[null,"昭阳农商行",10,null,null,10]
[null,"镇雄县联社",12,null,null,12]
["昭通 汇总",null,58,35,null,93]
["总计",null,634,362,5,1001]